[Event "*** Titled Tuesday Blitz"]
[Site "Chess.com"]
[Date "2019.08.06"]
[Round "8"]
[White "AliKa2810"]
[Black "Zubrrr"]
[Result "1-0"]
[WhiteElo "2577"]
[BlackElo "2704"]
[TimeControl "180+2"]
[EndTime "14:54:31 PDT"]
[Termination "AliKa2810 won by resignation"]

1. c4 {[%clk 0:03:00.5]} 1... e6 {[%clk 0:02:59.3]} 2. Nc3 {[%clk 0:03:00.6]}
2... b6 {[%clk 0:03:00.6]} 3. d4 {[%clk 0:02:58.9]} 3... Bb7 {[%clk 0:03:02.1]}
4. e4 {[%clk 0:02:59.8]} 4... Bb4 {[%clk 0:03:02.7]} 5. Bd3 {[%clk 0:03:00.5]}
5... f5 {[%clk 0:03:03.2]} 6. Qh5+ {[%clk 0:02:53.2]} 6... g6 {[%clk 0:03:03.1]}
7. Qe2 {[%clk 0:02:54.7]} 7... fxe4 {[%clk 0:02:31]} 8. Bxe4 {[%clk 0:02:54.8]}
8... Nc6 {[%clk 0:02:24.1]} 9. Nf3 {[%clk 0:02:54]} 9... Nf6 {[%clk 0:02:21.9]}
10. Bg5 {[%clk 0:02:45.7]} 10... Be7 {[%clk 0:02:22]} 11. O-O-O {[%clk
0:02:40.2]} 11... Nxe4 {[%clk 0:02:19.4]} 12. Nxe4 {[%clk 0:02:40.2]} 12... Na5
{[%clk 0:01:25.8]} 13. d5 {[%clk 0:02:27.5]} 13... O-O {[%clk 0:01:21]} 14. h4
{[%clk 0:02:26.3]} 14... Qe8 {[%clk 0:00:50.3]} 15. h5 {[%clk 0:02:24.4]} 15...
exd5 {[%clk 0:00:40.9]} 16. cxd5 {[%clk 0:02:22.3]} 16... Bxg5+ {[%clk
0:00:35.6]} 17. Nfxg5 {[%clk 0:02:23]} 17... h6 {[%clk 0:00:33.3]} 18. hxg6
{[%clk 0:02:16.8]} 18... Qxg6 {[%clk 0:00:34.2]} 19. Nf3 {[%clk 0:02:06.5]}
19... Rae8 {[%clk 0:00:34.2]} 20. Rh4 {[%clk 0:02:07.5]} 20... c6 {[%clk
0:00:28.9]} 21. Nfd2 {[%clk 0:01:57.5]} 21... Kh7 {[%clk 0:00:18.2]} 22. Rdh1
{[%clk 0:01:49.7]} 22... cxd5 {[%clk 0:00:19]} 23. Rxh6+ {[%clk 0:01:32.2]}
23... Qxh6 {[%clk 0:00:19.8]} 24. Rxh6+ {[%clk 0:01:33.8]} 24... Kxh6 {[%clk
0:00:21.7]} 25. Qe3+ {[%clk 0:01:34.7]} 25... Kh7 {[%clk 0:00:16.2]} 26. Nf6+
{[%clk 0:01:30.1]} 26... Rxf6 {[%clk 0:00:16.8]} 27. Qxe8 {[%clk 0:01:31]} 27...
Rxf2 {[%clk 0:00:14.9]} 28. Qxd7+ {[%clk 0:01:04.2]} 28... Kg8 {[%clk 0:00:13]}
29. Qg4+ {[%clk 0:01:00.9]} 29... Kf8 {[%clk 0:00:10.9]} 30. Nf3 {[%clk
0:00:46.7]} 30... d4 {[%clk 0:00:10.3]} 31. Qxd4 {[%clk 0:00:42.8]} 31... Rxg2
{[%clk 0:00:11.2]} 32. Qf6+ {[%clk 0:00:40.7]} 32... Ke8 {[%clk 0:00:04.6]} 33.
Ne5 {[%clk 0:00:42]} 33... Bd5 {[%clk 0:00:04.5]} 34. Qd6 {[%clk 0:00:34.8]}
34... Bxa2 {[%clk 0:00:05.4]} 35. Qb8+ {[%clk 0:00:30.7]} 35... Ke7 {[%clk
0:00:05.7]} 36. Qxa7+ {[%clk 0:00:31.7]} 36... Ke8 {[%clk 0:00:04.6]} 37. Qa8+
{[%clk 0:00:30]} 1-0

[Event "*** Titled Tuesday Blitz"]
[Site "Chess.com"]
[Date "2019.08.06"]
[Round "8"]
[White "Dhaydon19"]
[Black "chickencrossroad"]
[Result "1/2-1/2"]
[WhiteElo "2593"]
[BlackElo "2486"]
[TimeControl "180+2"]
[EndTime "14:54:32 PDT"]
[Termination "Game drawn by repetition"]

1. e4 {[%clk 0:03:01.8]} 1... c5 {[%clk 0:03:01]} 2. Nf3 {[%clk 0:03:02.8]} 2...
d6 {[%clk 0:03:02.5]} 3. d4 {[%clk 0:03:02.3]} 3... cxd4 {[%clk 0:03:04.4]} 4.
Nxd4 {[%clk 0:02:59.9]} 4... Nf6 {[%clk 0:03:05.2]} 5. Nd2 {[%clk 0:03:00.2]}
5... Nc6 {[%clk 0:02:41.5]} 6. Nxc6 {[%clk 0:03:00.1]} 6... bxc6 {[%clk
0:02:43.3]} 7. Bd3 {[%clk 0:03:01.5]} 7... g6 {[%clk 0:02:24.3]} 8. O-O {[%clk
0:03:01.9]} 8... Bg7 {[%clk 0:02:25.9]} 9. Re1 {[%clk 0:03:02.8]} 9... O-O
{[%clk 0:02:27.4]} 10. Nc4 {[%clk 0:03:02]} 10... d5 {[%clk 0:02:21.6]} 11. exd5
{[%clk 0:02:56.1]} 11... cxd5 {[%clk 0:02:21.4]} 12. Ne5 {[%clk 0:02:56.6]}
12... Bb7 {[%clk 0:02:15.1]} 13. Bf4 {[%clk 0:02:46.6]} 13... Nh5 {[%clk
0:01:51.5]} 14. Bd2 {[%clk 0:02:32.3]} 14... Qd6 {[%clk 0:01:36.4]} 15. Qe2
{[%clk 0:02:25.5]} 15... e6 {[%clk 0:01:15]} 16. a3 {[%clk 0:02:02.9]} 16...
Rfe8 {[%clk 0:01:15.3]} 17. Rad1 {[%clk 0:01:52.7]} 17... f6 {[%clk 0:00:41.6]}
18. Nxg6 {[%clk 0:01:53.1]} 18... hxg6 {[%clk 0:00:38.1]} 19. Bxg6 {[%clk
0:01:55]} 19... Nf4 {[%clk 0:00:39.7]} 20. Bxf4 {[%clk 0:01:55]} 20... Qxf4
{[%clk 0:00:41.4]} 21. Bxe8 {[%clk 0:01:49.7]} 21... Rxe8 {[%clk 0:00:41.5]} 22.
Qb5 {[%clk 0:01:49.8]} 22... Re7 {[%clk 0:00:35]} 23. Qc5 {[%clk 0:01:44]} 23...
Bf8 {[%clk 0:00:32.8]} 24. Qxa7 {[%clk 0:01:42.7]} 24... Rg7 {[%clk 0:00:27.6]}
25. Qe3 {[%clk 0:01:25.8]} 25... Rxg2+ {[%clk 0:00:21.5]} 26. Kf1 {[%clk
0:01:19.7]} 26... Qxh2 {[%clk 0:00:19.5]} 27. Qxe6+ {[%clk 0:01:18.7]} 27... Kh7
{[%clk 0:00:09.8]} 28. Rd2 {[%clk 0:01:11.7]} 28... Rg1+ {[%clk 0:00:04.2]} 29.
Ke2 {[%clk 0:01:12.2]} 29... Qh5+ {[%clk 0:00:05.6]} 30. f3 {[%clk 0:01:09.9]}
30... Rxe1+ {[%clk 0:00:02.9]} 31. Kxe1 {[%clk 0:01:09.9]} 31... Qh1+ {[%clk
0:00:03.7]} 32. Ke2 {[%clk 0:01:10.2]} 32... Qg2+ {[%clk 0:00:04.6]} 33. Ke1
{[%clk 0:01:02.8]} 33... Qg1+ {[%clk 0:00:03.9]} 34. Ke2 {[%clk 0:01:03.7]}
34... Qg2+ {[%clk 0:00:05]} 35. Kd1 {[%clk 0:01:03.6]} 35... Qf1+ {[%clk
0:00:03.6]} 36. Qe1 {[%clk 0:01:04.4]} 36... Qxf3+ {[%clk 0:00:04.9]} 37. Qe2
{[%clk 0:01:05.4]} 37... Qh1+ {[%clk 0:00:04.6]} 38. Qe1 {[%clk 0:01:05.8]}
38... Qf3+ {[%clk 0:00:05.8]} 39. Qe2 {[%clk 0:00:54.3]} 39... Qh1+ {[%clk
0:00:06.8]} 40. Qe1 {[%clk 0:00:55.8]} 40... Qh5+ {[%clk 0:00:05.5]} 41. Qe2
{[%clk 0:00:53.1]} 41... Qh1+ {[%clk 0:00:04.6]} 1/2-1/2

[Event "*** Titled Tuesday Blitz"]
[Site "Chess.com"]
[Date "2019.08.06"]
[Round "8"]
[White "rst2003"]
[Black "guillembaches"]
[Result "1-0"]
[WhiteElo "2308"]
[BlackElo "2314"]
[TimeControl "180+2"]
[EndTime "14:54:41 PDT"]
[Termination "rst2003 won on time"]

1. e4 {[%clk 0:03:01.9]} 1... c5 {[%clk 0:03:00.5]} 2. Nf3 {[%clk 0:03:02.9]}
2... d6 {[%clk 0:03:01.7]} 3. d4 {[%clk 0:03:03.5]} 3... cxd4 {[%clk 0:03:03.6]}
4. Nxd4 {[%clk 0:03:05]} 4... Nf6 {[%clk 0:03:04.9]} 5. Nc3 {[%clk 0:03:05.5]}
5... Nc6 {[%clk 0:03:06.4]} 6. f3 {[%clk 0:03:06.2]} 6... e5 {[%clk 0:03:07]} 7.
Nb3 {[%clk 0:03:06.6]} 7... Be7 {[%clk 0:03:08.2]} 8. Be3 {[%clk 0:03:07.9]}
8... O-O {[%clk 0:03:08.8]} 9. Qd2 {[%clk 0:03:08.6]} 9... Be6 {[%clk
0:03:09.8]} 10. Nd5 {[%clk 0:03:07.8]} 10... Bxd5 {[%clk 0:03:04.5]} 11. exd5
{[%clk 0:03:08.5]} 11... Nb8 {[%clk 0:03:01.5]} 12. Be2 {[%clk 0:03:09.3]} 12...
Nbd7 {[%clk 0:02:54.4]} 13. O-O {[%clk 0:03:09.1]} 13... Re8 {[%clk 0:02:44.7]}
14. c4 {[%clk 0:03:09.9]} 14... a6 {[%clk 0:02:32.2]} 15. Na5 {[%clk 0:03:07.4]}
15... Qc7 {[%clk 0:02:29.3]} 16. Rac1 {[%clk 0:03:01.5]} 16... e4 {[%clk
0:02:22.9]} 17. f4 {[%clk 0:03:01.3]} 17... h5 {[%clk 0:02:14.3]} 18. h3 {[%clk
0:02:57.3]} 18... Bd8 {[%clk 0:02:10.4]} 19. b4 {[%clk 0:02:56.8]} 19... Qc8
{[%clk 0:02:11]} 20. Nb3 {[%clk 0:02:55.3]} 20... b6 {[%clk 0:02:04.9]} 21. Rfd1
{[%clk 0:02:13.7]} 21... a5 {[%clk 0:02:02.9]} 22. a3 {[%clk 0:02:06.2]} 22...
axb4 {[%clk 0:01:35.9]} 23. axb4 {[%clk 0:02:06.8]} 23... Ra3 {[%clk 0:01:36.9]}
24. Qb2 {[%clk 0:01:55.6]} 24... Ra8 {[%clk 0:01:32.2]} 25. Nd4 {[%clk
0:01:55.5]} 25... h4 {[%clk 0:01:27.4]} 26. Ra1 {[%clk 0:01:50.8]} 26... Be7
{[%clk 0:01:18.1]} 27. Nc6 {[%clk 0:01:40.3]} 27... Bf8 {[%clk 0:01:11]} 28.
Rxa8 {[%clk 0:01:39.5]} 28... Qxa8 {[%clk 0:01:12]} 29. Ra1 {[%clk 0:01:41]}
29... Qc8 {[%clk 0:01:12]} 30. Qb3 {[%clk 0:01:22.1]} 30... Nb8 {[%clk
0:00:55.2]} 31. Ra8 {[%clk 0:01:13]} 31... Nfd7 {[%clk 0:00:46.1]} 32. Qa4
{[%clk 0:01:02.7]} 32... g6 {[%clk 0:00:32.4]} 33. Nxb8 {[%clk 0:00:44.7]} 33...
Nxb8 {[%clk 0:00:32.8]} 34. Bxb6 {[%clk 0:00:45.7]} 34... e3 {[%clk 0:00:29.5]}
35. Ba7 {[%clk 0:00:42.1]} 35... Qb7 {[%clk 0:00:15]} 36. Qxe8 {[%clk
0:00:41.4]} 1-0

[Event "*** Titled Tuesday Blitz"]
[Site "Chess.com"]
[Date "2019.08.06"]
[Round "8"]
[White "resha1988"]
[Black "PchelkinVK"]
[Result "1-0"]
[WhiteElo "2781"]
[BlackElo "2525"]
[TimeControl "180+2"]
[EndTime "14:54:49 PDT"]
[Termination "resha1988 won by resignation"]

1. d4 {[%clk 0:03:01.9]} 1... e5 {[%clk 0:03:00.4]} 2. dxe5 {[%clk 0:03:01.7]}
2... d6 {[%clk 0:03:01.5]} 3. exd6 {[%clk 0:03:02.1]} 3... Bxd6 {[%clk
0:03:03.4]} 4. Nf3 {[%clk 0:03:02.9]} 4... Nc6 {[%clk 0:03:04.6]} 5. Bg5 {[%clk
0:02:59.1]} 5... f6 {[%clk 0:03:05.3]} 6. Bh4 {[%clk 0:02:59.9]} 6... Qe7 {[%clk
0:03:06.5]} 7. e3 {[%clk 0:02:56.3]} 7... Bg4 {[%clk 0:03:06.7]} 8. Bb5 {[%clk
0:02:56.1]} 8... Nh6 {[%clk 0:03:03.7]} 9. Nbd2 {[%clk 0:02:51]} 9... O-O {[%clk
0:02:57.5]} 10. Bxc6 {[%clk 0:02:47.7]} 10... bxc6 {[%clk 0:02:57.4]} 11. O-O
{[%clk 0:02:49]} 11... Rad8 {[%clk 0:02:43]} 12. Qe2 {[%clk 0:02:49.5]} 12...
Kh8 {[%clk 0:02:27.6]} 13. Bg3 {[%clk 0:02:47.8]} 13... Nf5 {[%clk 0:02:26.6]}
14. Bxd6 {[%clk 0:02:48.1]} 14... Rxd6 {[%clk 0:02:26]} 15. Qc4 {[%clk 0:02:43]}
15... Bh5 {[%clk 0:02:05.8]} 16. g4 {[%clk 0:02:30.7]} 16... Bf7 {[%clk
0:01:54.7]} 17. Qe4 {[%clk 0:02:28.1]} 17... Qd8 {[%clk 0:00:39.7]} 18. Qxf5
{[%clk 0:02:19.7]} 18... Rxd2 {[%clk 0:00:34.2]} 19. Nxd2 {[%clk 0:02:21.6]}
19... Qxd2 {[%clk 0:00:34.8]} 20. Rad1 {[%clk 0:02:04]} 20... Qb4 {[%clk
0:00:29.9]} 21. b3 {[%clk 0:01:57.5]} 21... Bg6 {[%clk 0:00:21.1]} 22. Qf4
{[%clk 0:01:58.3]} 22... Qa5 {[%clk 0:00:21.1]} 23. Rd7 {[%clk 0:01:46.9]} 23...
Qxa2 {[%clk 0:00:13.6]} 24. Rfd1 {[%clk 0:01:41.7]} 24... Qxc2 {[%clk
0:00:11.4]} 25. Rd8 {[%clk 0:01:40.2]} 25... Be8 {[%clk 0:00:09.1]} 26. Qb4
{[%clk 0:01:14.7]} 26... Rg8 {[%clk 0:00:08.7]} 27. Qe7 {[%clk 0:01:05.3]} 27...
h6 {[%clk 0:00:07.2]} 28. b4 {[%clk 0:00:53.3]} 28... Qg6 {[%clk 0:00:05.9]} 29.
h3 {[%clk 0:00:50.6]} 29... h5 {[%clk 0:00:06.8]} 30. R1d4 {[%clk 0:00:50.3]}
30... Kh7 {[%clk 0:00:06.7]} 31. Qe4 {[%clk 0:00:46.9]} 31... hxg4 {[%clk
0:00:05.3]} 32. hxg4 {[%clk 0:00:44]} 32... c5 {[%clk 0:00:02.9]} 33. bxc5
{[%clk 0:00:42]} 33... Qxe4 {[%clk 0:00:02.8]} 34. Rxe4 {[%clk 0:00:42.9]} 34...
Bf7 {[%clk 0:00:03.8]} 35. Rxg8 {[%clk 0:00:43.6]} 35... Kxg8 {[%clk 0:00:05.7]}
36. Ra4 {[%clk 0:00:43.8]} 36... c6 {[%clk 0:00:05.6]} 37. Rxa7 {[%clk
0:00:44.2]} 37... Bd5 {[%clk 0:00:07.5]} 38. Rd7 {[%clk 0:00:41.8]} 38... Kf8
{[%clk 0:00:08]} 39. Kh2 {[%clk 0:00:39.4]} 39... g6 {[%clk 0:00:08.6]} 40. Rd6
{[%clk 0:00:40.1]} 40... Ke7 {[%clk 0:00:09.1]} 41. Kg3 {[%clk 0:00:40.9]} 41...
g5 {[%clk 0:00:09.6]} 42. f4 {[%clk 0:00:38.3]} 42... gxf4+ {[%clk 0:00:10.8]}
43. exf4 {[%clk 0:00:39.4]} 43... Be4 {[%clk 0:00:11.6]} 44. f5 {[%clk
0:00:39.6]} 44... Bd5 {[%clk 0:00:11.8]} 45. Kf4 {[%clk 0:00:40.2]} 1-0

[Event "*** Titled Tuesday Blitz"]
[Site "Chess.com"]
[Date "2019.08.06"]
[Round "8"]
[White "Annawel"]
[Black "jefferyx"]
[Result "1-0"]
[WhiteElo "3003"]
[BlackElo "2932"]
[TimeControl "180+2"]
[EndTime "14:54:55 PDT"]
[Termination "Annawel won by resignation"]

1. e4 {[%clk 0:03:01.9]} 1... g6 {[%clk 0:03:01.9]} 2. d4 {[%clk 0:03:03.1]}
2... Bg7 {[%clk 0:03:03.5]} 3. Nc3 {[%clk 0:03:04.9]} 3... a6 {[%clk 0:03:05.1]}
4. h4 {[%clk 0:03:05.3]} 4... h5 {[%clk 0:03:05.7]} 5. Nf3 {[%clk 0:03:01.9]}
5... d6 {[%clk 0:03:06.5]} 6. Ng5 {[%clk 0:03:03.2]} 6... Nc6 {[%clk 0:02:43.8]}
7. Be3 {[%clk 0:03:02.1]} 7... e5 {[%clk 0:02:27.8]} 8. d5 {[%clk 0:02:50.8]}
8... Nce7 {[%clk 0:02:28.5]} 9. f3 {[%clk 0:02:49.8]} 9... Nf6 {[%clk
0:02:07.8]} 10. Qd2 {[%clk 0:02:41.7]} 10... c6 {[%clk 0:02:08.9]} 11. Bc4
{[%clk 0:02:12.9]} 11... b5 {[%clk 0:02:09.8]} 12. Bb3 {[%clk 0:02:10.2]} 12...
c5 {[%clk 0:02:11.1]} 13. a4 {[%clk 0:02:10.1]} 13... Bd7 {[%clk 0:02:11]} 14.
Nd1 {[%clk 0:01:56.2]} 14... O-O {[%clk 0:01:59.8]} 15. Nf2 {[%clk 0:01:55]}
15... Qb8 {[%clk 0:01:51.9]} 16. c3 {[%clk 0:01:50.1]} 16... bxa4 {[%clk
0:01:45.2]} 17. Bxa4 {[%clk 0:01:37.1]} 17... Bxa4 {[%clk 0:01:47.1]} 18. Rxa4
{[%clk 0:01:39]} 18... Nc8 {[%clk 0:01:44.6]} 19. Qe2 {[%clk 0:01:24.5]} 19...
Qb7 {[%clk 0:01:45.3]} 20. O-O {[%clk 0:01:23.5]} 20... Nb6 {[%clk 0:01:44.4]}
21. Ra5 {[%clk 0:01:23.1]} 21... Ne8 {[%clk 0:01:29.1]} 22. Rfa1 {[%clk
0:01:22.5]} 22... Nc7 {[%clk 0:01:30.3]} 23. g4 {[%clk 0:01:19.1]} 23... hxg4
{[%clk 0:01:32.2]} 24. fxg4 {[%clk 0:01:17.8]} 24... Nd7 {[%clk 0:01:22.6]} 25.
Nf3 {[%clk 0:01:09.3]} 25... f5 {[%clk 0:01:21]} 26. gxf5 {[%clk 0:01:10.4]}
26... gxf5 {[%clk 0:01:22.9]} 27. c4 {[%clk 0:01:07.7]} 27... Rab8 {[%clk
0:01:07.3]} 28. R1a2 {[%clk 0:00:59.7]} 28... f4 {[%clk 0:00:53.4]} 29. Bd2
{[%clk 0:01:00.9]} 29... Bf6 {[%clk 0:00:55.3]} 30. Kf1 {[%clk 0:00:57.9]} 30...
Rf7 {[%clk 0:00:56]} 31. Bc3 {[%clk 0:00:58.6]} 31... Rg7 {[%clk 0:00:57.2]} 32.
h5 {[%clk 0:00:55.5]} 32... Kf7 {[%clk 0:00:57.3]} 33. Nh2 {[%clk 0:00:54.5]}
33... Rg3 {[%clk 0:00:37.9]} 34. Be1 {[%clk 0:00:47.6]} 34... Rh8 {[%clk
0:00:32.2]} 35. Nfg4 {[%clk 0:00:45.7]} 35... Rh3 {[%clk 0:00:30.6]} 36. h6
{[%clk 0:00:47]} 36... Qb8 {[%clk 0:00:20.5]} 37. R5a3 {[%clk 0:00:39.3]} 37...
Rh5 {[%clk 0:00:21.4]} 38. Qf3 {[%clk 0:00:35.6]} 38... Bg5 {[%clk 0:00:22.7]}
39. Rb3 {[%clk 0:00:36.6]} 39... Qc8 {[%clk 0:00:18.5]} 40. Nxe5+ {[%clk
0:00:35.1]} 40... Nxe5 {[%clk 0:00:20.4]} 41. Qxh5+ {[%clk 0:00:36.7]} 41... Kf6
{[%clk 0:00:22.3]} 42. Bh4 {[%clk 0:00:38]} 42... Bxh4 {[%clk 0:00:18.9]} 43.
Qxh4+ {[%clk 0:00:39.9]} 43... Kg6 {[%clk 0:00:20.8]} 44. Rh3 {[%clk 0:00:38.3]}
44... Ne8 {[%clk 0:00:09.5]} 45. b3 {[%clk 0:00:38.4]} 45... Nf6 {[%clk
0:00:09.8]} 46. Rg2+ {[%clk 0:00:39.9]} 1-0

[Event "*** Titled Tuesday Blitz"]
[Site "Chess.com"]
[Date "2019.08.06"]
[Round "8"]
[White "Lion_DL"]
[Black "WarlordX"]
[Result "1-0"]
[WhiteElo "2347"]
[BlackElo "2513"]
[TimeControl "180+2"]
[EndTime "14:54:57 PDT"]
[Termination "Lion_DL won by resignation"]

1. e4 {[%clk 0:03:01.9]} 1... c5 {[%clk 0:02:59.2]} 2. Nf3 {[%clk 0:03:02.2]}
2... d6 {[%clk 0:03:00.6]} 3. Bb5+ {[%clk 0:03:02.7]} 3... Nd7 {[%clk
0:03:01.4]} 4. O-O {[%clk 0:03:02.8]} 4... a6 {[%clk 0:03:02.7]} 5. Bxd7+ {[%clk
0:03:03.2]} 5... Bxd7 {[%clk 0:03:04.6]} 6. c3 {[%clk 0:03:04.7]} 6... g6 {[%clk
0:03:05.6]} 7. d4 {[%clk 0:03:04.4]} 7... cxd4 {[%clk 0:03:07.5]} 8. cxd4 {[%clk
0:03:04.9]} 8... Bg7 {[%clk 0:03:08.8]} 9. Nc3 {[%clk 0:03:06.2]} 9... b5 {[%clk
0:03:08.6]} 10. a3 {[%clk 0:03:03.9]} 10... Nh6 {[%clk 0:02:42.3]} 11. h3 {[%clk
0:02:58.9]} 11... O-O {[%clk 0:02:40.6]} 12. Re1 {[%clk 0:02:56.3]} 12... f6
{[%clk 0:02:41.4]} 13. e5 {[%clk 0:02:45.1]} 13... dxe5 {[%clk 0:02:38.1]} 14.
dxe5 {[%clk 0:02:45.8]} 14... Bc6 {[%clk 0:02:36.4]} 15. Nd4 {[%clk 0:02:37.7]}
15... Bd7 {[%clk 0:02:27.1]} 16. Qb3+ {[%clk 0:02:28.4]} 16... Kh8 {[%clk
0:02:25.4]} 17. Bxh6 {[%clk 0:02:17.5]} 17... Bxh6 {[%clk 0:02:25.9]} 18. Rad1
{[%clk 0:02:19.4]} 18... Qc8 {[%clk 0:02:18.9]} 19. Nd5 {[%clk 0:02:09.4]} 19...
Qc5 {[%clk 0:01:37.1]} 20. exf6 {[%clk 0:01:04]} 20... exf6 {[%clk 0:01:33.5]}
21. Ne6 {[%clk 0:00:50.9]} 21... Bxe6 {[%clk 0:01:34.3]} 22. Rxe6 {[%clk
0:00:52.5]} 22... Bg7 {[%clk 0:01:35.8]} 23. Rde1 {[%clk 0:00:48.1]} 23... f5
{[%clk 0:01:18.3]} 24. Re7 {[%clk 0:00:45.8]} 24... Rad8 {[%clk 0:01:12.7]} 25.
Nc7 {[%clk 0:00:43.1]} 25... Rd2 {[%clk 0:00:58.6]} 26. Qf3 {[%clk 0:00:28.1]}
26... Rxf2 {[%clk 0:00:15.8]} 27. Qxf2 {[%clk 0:00:17.8]} 27... Bd4 {[%clk
0:00:17.3]} 28. R1e3 {[%clk 0:00:13.7]} 28... Qc1+ {[%clk 0:00:18.7]} 29. Kh2
{[%clk 0:00:13.7]} 29... f4 {[%clk 0:00:19.8]} 30. Rxh7+ {[%clk 0:00:12.4]}
30... Kxh7 {[%clk 0:00:19.4]} 31. Re7+ {[%clk 0:00:13.2]} 31... Kh6 {[%clk
0:00:15.3]} 32. Qxd4 {[%clk 0:00:14]} 32... Qc6 {[%clk 0:00:05.2]} 33. Qg7+
{[%clk 0:00:14.3]} 33... Kg5 {[%clk 0:00:06.8]} 34. Ne6+ {[%clk 0:00:14.5]}
34... Kf5 {[%clk 0:00:05.1]} 35. Qxf8+ {[%clk 0:00:14.9]} 35... Ke4 {[%clk
0:00:06.6]} 36. Qxf4+ {[%clk 0:00:15.6]} 36... Kd3 {[%clk 0:00:08.2]} 37. Qf3+
{[%clk 0:00:15.8]} 37... Kc2 {[%clk 0:00:09.6]} 38. Qxc6+ {[%clk 0:00:16.1]} 1-0

[Event "*** Titled Tuesday Blitz"]
[Site "Chess.com"]
[Date "2019.08.06"]
[Round "8"]
[White "Th3ChessViking"]
[Black "MFBerna"]
[Result "1-0"]
[WhiteElo "2410"]
[BlackElo "2374"]
[TimeControl "180+2"]
[EndTime "14:55:00 PDT"]
[Termination "Th3ChessViking won by resignation"]

1. d4 {[%clk 0:03:01.9]} 1... d5 {[%clk 0:02:58.1]} 2. c4 {[%clk 0:03:01.7]}
2... dxc4 {[%clk 0:02:59]} 3. Nf3 {[%clk 0:02:58.3]} 3... e6 {[%clk 0:02:54.4]}
4. e3 {[%clk 0:02:59.6]} 4... c5 {[%clk 0:02:54.8]} 5. Bxc4 {[%clk 0:02:56]}
5... Nf6 {[%clk 0:02:54.3]} 6. O-O {[%clk 0:02:50.7]} 6... Be7 {[%clk 0:02:53]}
7. dxc5 {[%clk 0:02:50.2]} 7... Qxd1 {[%clk 0:02:54.9]} 8. Rxd1 {[%clk
0:02:50.6]} 8... Bxc5 {[%clk 0:02:56.4]} 9. Be2 {[%clk 0:02:50.3]} 9... O-O
{[%clk 0:02:56.7]} 10. Ne5 {[%clk 0:02:46.4]} 10... Nfd7 {[%clk 0:02:48.3]} 11.
Nd3 {[%clk 0:02:46.2]} 11... Be7 {[%clk 0:02:46.7]} 12. b3 {[%clk 0:02:28.5]}
12... Nc6 {[%clk 0:02:46.9]} 13. Bb2 {[%clk 0:02:29.3]} 13... Nf6 {[%clk
0:02:11.9]} 14. Nd2 {[%clk 0:02:27.5]} 14... Rd8 {[%clk 0:02:09.4]} 15. Nc4
{[%clk 0:02:25.9]} 15... Bd7 {[%clk 0:02:05]} 16. Bf3 {[%clk 0:02:25.4]} 16...
Be8 {[%clk 0:01:57.6]} 17. Nde5 {[%clk 0:02:22.5]} 17... Rxd1+ {[%clk
0:01:42.9]} 18. Rxd1 {[%clk 0:02:24.4]} 18... Nxe5 {[%clk 0:01:31.1]} 19. Bxe5
{[%clk 0:02:08]} 19... Nd5 {[%clk 0:01:06.7]} 20. Bxd5 {[%clk 0:02:02.3]} 20...
exd5 {[%clk 0:01:08.6]} 21. Rxd5 {[%clk 0:02:02.6]} 21... Rc8 {[%clk 0:01:03]}
22. h3 {[%clk 0:01:54.9]} 22... f6 {[%clk 0:00:44]} 23. Bd4 {[%clk 0:01:28.8]}
23... b6 {[%clk 0:00:34.5]} 24. a4 {[%clk 0:01:10.2]} 24... Kf8 {[%clk
0:00:19.5]} 25. a5 {[%clk 0:00:47.8]} 25... b5 {[%clk 0:00:18]} 26. Nd6 {[%clk
0:00:46.5]} 26... Rd8 {[%clk 0:00:16.8]} 27. Bc5 {[%clk 0:00:42.8]} 27... Bf7
{[%clk 0:00:18.1]} 28. Rd4 {[%clk 0:00:40.3]} 28... Bxb3 {[%clk 0:00:17]} 29.
Nf5 {[%clk 0:00:27.1]} 29... Bxc5 {[%clk 0:00:10]} 30. Rxd8+ {[%clk 0:00:27]}
30... Kf7 {[%clk 0:00:11.7]} 31. Rc8 {[%clk 0:00:21.7]} 31... Bf8 {[%clk
0:00:11.4]} 32. Rc7+ {[%clk 0:00:21.9]} 32... Ke6 {[%clk 0:00:11.7]} 33. Nd4+
{[%clk 0:00:23.8]} 33... Kd6 {[%clk 0:00:13.1]} 34. Rc8 {[%clk 0:00:23.6]} 34...
Bd5 {[%clk 0:00:04.9]} 35. Rxf8 {[%clk 0:00:23.5]} 35... Kc5 {[%clk 0:00:05.7]}
36. Rc8+ {[%clk 0:00:21.4]} 36... Kb4 {[%clk 0:00:06]} 37. a6 {[%clk 0:00:22.8]}
37... Bc4 {[%clk 0:00:05.3]} 38. Rc7 {[%clk 0:00:22.5]} 38... Ka5 {[%clk
0:00:06.1]} 39. Rxa7 {[%clk 0:00:24.4]} 39... Kb6 {[%clk 0:00:07.5]} 40. Rxg7
{[%clk 0:00:24.3]} 40... Kxa6 {[%clk 0:00:08.2]} 41. Rxh7 {[%clk 0:00:25.9]}
41... b4 {[%clk 0:00:09.6]} 42. Rh6 {[%clk 0:00:27.8]} 42... Ka5 {[%clk
0:00:09.2]} 43. Rxf6 {[%clk 0:00:29.7]} 43... b3 {[%clk 0:00:10.1]} 44. Nxb3+
{[%clk 0:00:29.6]} 1-0